Workbook

Sheet Welcome
B2: Welcome to the
A4: Switchgrass Production Decision Tool
A5: Project Name Here
F6: Department of Agricultural & Resource Economics
F7: The University of Tennessee
F9: Project Size | G9: 50 | H9: acres
H14: Click on the buttons below for the tutorial
H15: or to begin the worksheet
H17: Tutorial
H19: Begin
A27: Developed by Josh Qualls, former Graduate Research Assistant, Department of Agricultural and Resource Economics, The University of Tennessee.

Sheet Tutorial
B1: =Welcome!$A$5 -> Project Name Here
B2: Tutorial
B5: Getting Started
B7: The first sheet that will come up when the program is loaded is the welcome sheet. In this sheet, the user will
B8: be asked the size of their project. This value will then transfer throughout the document and will set the foundation for
B9: the values found in the program. After this value is recorded, the user will see two macro buttons. The "tutorial" button
B10: will take them to this sheet for a brief introduction on how to operate the program and the "input-output" macro button
B11: will take them to the input-output sheet, which is the heart of the program.
B13: Input-output Sheet
B15: This sheet allows the user to insert general data figures and to see the net present value of the project in
B16: optimistic terms (+10% revenue, -10% costs) realistic terms, and pessimistic terms (-10% revenue, +10% costs).
B17: It also provides the user with the internal rate of return (IRR). At the bottom of the Input-output sheet, there are
B18: seven macro button that will take the user to each worksheet in the program and present them with the graphs based
B19: off of the data generated in the program.
B21: Program limitations
B23: This program assumes that each stand of switchgrass wil have a useful life of 10 years and is not set up to accommodate
B24: projects that last longer.

Sheet Input-output
B1: =Welcome!$A$5 -> Project Name Here
B2: Input and Output
B4: Input data | J4: Output data
B6: General Data | J6: Financial analysis tools
B7: interest rate | C7: % | D7: 0.0347 | J7: Net Present Value, expected | M7: $ | N7: =NPV(D7,'Cash flow'!C57:L57) -> 10051.81124
B8: Project size | C8: acres | D8: =Welcome!$G$9 -> 50 | J8: Net Present Value, optimistic | M8: $ | N8: =NPV(D7,'Cash flow'!C61:L61) -> 26157.05115
B9: Project life | C9: yrs | D9: 10 | E9: 10 | J9: Net Present Value, pessimistic | M9: $ | N9: =NPV(D7,'Cash flow'!C65:L65) -> -6053.428683
B10: Land costs (tax, lease) and insurance | C10: $/acre/yr | D10: 0 | E10: 0 | J10: Internal Rate of Return | N10: =IRR('Cash flow'!C22:L22) -> 0.1237367631
B11: Internal administration costs | C11: $/acre/yr | D11: 0 | E11: 0
B12: Acreage Incentive payments | C12: $/acre/yr | D12: 0 | E12: 0
B13: Total years of acreage incentive payment | C13: yrs | D13: 0 | E13: 0 | J13: Production costs, revenues, and earnings
B14: Biomass price at plant gate | C14: $/ton | D14: 75 | E14: 75 | J14: Average costs per acre | N14: =(SUM('Cash flow'!C13:L13)+SUM('Cash flow'!C20:L20))/10 -> 360.9955042
J15: Average (Gross) revenue per acre | N15: =SUM('Cash flow'!C17:L17)/10 -> 394.2675
J16: Average (net) earning per acre | N16: =N15-N14 -> 33.2719958
B17: Startup loans | J17: Average revenue per ton | N17: =(SUM('Cash flow'!C52:L52))/SUM('Biomass harvested submodel'!C12:L12) -> 74.25
B18: Available equity | C18: $ | D18: 0 | J18: Average costs per ton | N18: =(SUM('Cash flow'!C48:L48)+SUM('Cash flow'!C55:L55))/SUM('Biomass harvested submodel'!C12:L12) -> 67.98408742
B19: Loan amount | D19: 0 | J19: Average (net) earning per ton | N19: =D14-N18 -> 7.015912581
B20: Loan interest rate | C20: % | D20: 0
B23: Yellow cells: insert numbers, insert "0" if not applicable
B24: Grey cells: output from previous inputs

Sheet Cash flow
B1: =Welcome!$A$5 -> Project Name Here
B2: Cash Flow diagram (per Acre)
B4: Year | C4: 1 | D4: 2 | E4: 3 | F4: 4 | G4: 5 | H4: 6 | I4: 7 | J4: 8 | K4: 9 | L4: 10
B5: Expenditures
B6: land costs and insurance | C6: ='Input-output'!D10 -> 0 | D6: ='Input-output'!D10 -> 0 | E6: ='Input-output'!D10 -> 0 | F6: ='Input-output'!D10 -> 0 | G6: ='Input-output'!D10 -> 0 | H6: ='Input-output'!D10 -> 0 | I6: ='Input-output'!D10 -> 0 | J6: ='Input-output'!D10 -> 0 | K6: ='Input-output'!D10 -> 0 | L6: ='Input-output'!D10 -> 0
B7: Administration cost | C7: ='Input-output'!D11 -> 0 | D7: ='Input-output'!D11 -> 0 | E7: ='Input-output'!D11 -> 0 | F7: ='Input-output'!D11 -> 0 | G7: ='Input-output'!D11 -> 0 | H7: ='Input-output'!D11 -> 0 | I7: ='Input-output'!D11 -> 0 | J7: ='Input-output'!D11 -> 0 | K7: ='Input-output'!D11 -> 0 | L7: ='Input-output'!D11 -> 0
B8: Planting and establishment cost | C8: ='Planting and Est. submodel'!J65 -> 175.528 | D8: =C8*0.2 -> 35.1056 | E8: 0 | F8: 0 | G8: 0 | H8: 0 | I8: 0 | J8: 0 | K8: 0 | L8: 0
B9: Storage Cost | C9: ='Storage submodel'!C84/'Input-output'!$D$8 -> 62.4490625 | D9: ='Storage submodel'!D84/'Input-output'!$D$8 -> 44.0486875 | E9: ='Storage submodel'!E84/'Input-output'!$D$8 -> 52.6391875 | F9: ='Storage submodel'!F84/'Input-output'!$D$8 -> 22.41 | G9: ='Storage submodel'!G84/'Input-output'!$D$8 -> 22.41 | H9: ='Storage submodel'!H84/'Input-output'!$D$8 -> 22.41 | I9: ='Storage submodel'!I84/'Input-output'!$D$8 -> 22.41 | J9: ='Storage submodel'!J84/'Input-output'!$D$8 -> 22.41 | K9: ='Storage submodel'!K84/'Input-output'!$D$8 -> 22.41 | L9: ='Storage submodel'!L84/'Input-output'!$D$8 -> 22.41
B10: Stand maintenance cost | C10: 0 | D10: ='Stand Maint. Submodel'!H21 -> 178.275 | E10: ='Stand Maint. Submodel'!$H$23 -> 157.275 | F10: ='Stand Maint. Submodel'!$H$23 -> 157.275 | G10: ='Stand Maint. Submodel'!$H$23 -> 157.275 | H10: ='Stand Maint. Submodel'!$H$23 -> 157.275 | I10: ='Stand Maint. Submodel'!$H$23 -> 157.275 | J10: ='Stand Maint. Submodel'!$H$23 -> 157.275 | K10: ='Stand Maint. Submodel'!$H$23 -> 157.275 | L10: ='Stand Maint. Submodel'!$H$23 -> 157.275
B11: Harvest Cost | C11: ='Harvest submodel'!L44 -> 136.1717 | D11: ='Harvest submodel'!L44 -> 136.1717 | E11: ='Harvest submodel'!L44 -> 136.1717 | F11: ='Harvest submodel'!L44 -> 136.1717 | G11: ='Harvest submodel'!L44 -> 136.1717 | H11: ='Harvest submodel'!L44 -> 136.1717 | I11: ='Harvest submodel'!L44 -> 136.1717 | J11: ='Harvest submodel'!L44 -> 136.1717 | K11: ='Harvest submodel'!L44 -> 136.1717 | L11: ='Harvest submodel'!L44 -> 136.1717
B12: Transportation Cost | C12: ='Trans. submodel'!D30 -> 7.517354167 | D12: ='Trans. submodel'!D39 -> 19.86729315 | E12: ='Trans. submodel'!D48 -> 32.21723214 | F12: ='Trans. submodel'!D57 -> 32.21723214 | G12: ='Trans. submodel'!D66 -> 32.21723214 | H12: ='Trans. submodel'!L30 -> 32.21723214 | I12: ='Trans. submodel'!L39 -> 32.21723214 | J12: ='Trans. submodel'!L48 -> 32.21723214 | K12: ='Trans. submodel'!L57 -> 32.21723214 | L12: ='Trans. submodel'!L66 -> 32.21723214
B13: Total Expenditues | C13: =SUM(C6:C12) -> 381.6661167 | D13: 413.4682807 | E13: 378.3031196 | F13: 348.0739321 | G13: 348.0739321 | H13: 348.0739321 | I13: 348.0739321 | J13: 348.0739321 | K13: 348.0739321 | L13: 348.0739321
B14: Revenues
B15: Acreage incentive Payments | C15: =IF('Input-output'!D13-'Cash flow'!C4>=1,'Input-output'!D12,0) -> 0 | D15: =IF('Input-output'!D13-'Cash flow'!D4>=1,'Input-output'!D12,0) -> 0 | E15: =IF('Input-output'!D13-'Cash flow'!E4>=1,'Input-output'!D12,0) -> 0 | F15: =IF('Input-output'!D13-'Cash flow'!F4>=1,'Input-output'!D12,0) -> 0 | G15: =IF('Input-output'!D13-'Cash flow'!G4>=1,'Input-output'!D12,0) -> 0 | H15: =IF('Input-output'!D13-'Cash flow'!H4>=1,'Input-output'!D12,0) -> 0 | I15: =IF('Input-output'!D13-'Cash flow'!I4>=1,'Input-output'!D12,0) -> 0 | J15: =IF('Input-output'!D13-'Cash flow'!J4>=1,'Input-output'!D12,0) -> 0 | K15: =IF('Input-output'!D13-'Cash flow'!K4>=1,'Input-output'!D12,0) -> 0 | L15: =IF('Input-output'!D13-'Cash flow'!L4>=1,'Input-output'!D12,0) -> 0
B16: Biomass | C16: =('Storage submodel'!C80/'Input-output'!D8)*'Input-output'!D14 -> 103.95 | D16: ='Storage submodel'!D80/'Input-output'!D8*'Input-output'!D14 -> 274.725 | E16: ='Storage submodel'!E80/'Input-output'!D8*'Input-output'!D14 -> 445.5 | F16: =('Storage submodel'!F80/'Input-output'!D8)*'Input-output'!D14 -> 445.5 | G16: =('Storage submodel'!G80/'Input-output'!D8)*'Input-output'!D14 -> 445.5 | H16: =('Storage submodel'!H80/'Input-output'!D8)*'Input-output'!D14 -> 445.5 | I16: =('Storage submodel'!I80/'Input-output'!D8)*'Input-output'!D14 -> 445.5 | J16: =('Storage submodel'!J80/'Input-output'!D8)*'Input-output'!D14 -> 445.5 | K16: =('Storage submodel'!K80/'Input-output'!D8)*'Input-output'!D14 -> 445.5 | L16: =('Storage submodel'!L80/'Input-output'!D8)*'Input-output'!D14 -> 445.5
B17: Total Revenue | C17: =SUM(C15:C16) -> 103.95 | D17: =SUM(D15:D16) -> 274.725 | E17: 445.5 | F17: 445.5 | G17: 445.5 | H17: 445.5 | I17: 445.5 | J17: 445.5 | K17: 445.5 | L17: 445.5
B18: Total Profit 1 | C18: =C17-C13 -> -277.7161167 | D18: =D17-D13 -> -138.7432807 | E18: 67.19688036 | F18: 97.42606786 | G18: 97.42606786 | H18: 97.42606786 | I18: 97.42606786 | J18: 97.42606786 | K18: 97.42606786 | L18: 97.42606786
B19: Other costs
B20: Loan Payments | C20: =-PMT('Input-output'!D20,'Input-output'!D9,'Input-output'!D19)/J36 -> 0 | D20: =-PMT('Input-output'!D20,'Input-output'!D9,'Input-output'!D19)/J36 -> 0 | E20: =-PMT('Input-output'!D20,'Input-output'!D9,'Input-output'!D19)/J36 -> 0 | F20: =-PMT('Input-output'!D20,'Input-output'!D9,'Input-output'!D19)/J36 -> 0 | G20: =-PMT('Input-output'!D20,'Input-output'!D9,'Input-output'!D19)/J36 -> 0 | H20: =-PMT('Input-output'!D20,'Input-output'!D9,'Input-output'!D19)/J36 -> 0 | I20: =-PMT('Input-output'!D20,'Input-output'!D9,'Input-output'!D19)/J36 -> 0 | J20: =-PMT('Input-output'!D20,'Input-output'!D9,'Input-output'!D19)/J36 -> 0 | K20: =-PMT('Input-output'!D20,'Input-output'!D9,'Input-output'!D19)/J36 -> 0 | L20: =-PMT('Input-output'!D20,'Input-output'!D9,'Input-output'!D19)/J36 -> 0
B21: Total Costs | C21: =C20+C13 -> 381.6661167 | D21: =D20+D13 -> 413.4682807 | E21: 378.3031196 | F21: 348.0739321 | G21: 348.0739321 | H21: 348.0739321 | I21: 348.0739321 | J21: 348.0739321 | K21: 348.0739321 | L21: 348.0739321
B22: Total Profit 2 | C22: =C18-C20 -> -277.7161167 | D22: =D18-D20 -> -138.7432807 | E22: 67.19688036 | F22: 97.42606786 | G22: 97.42606786 | H22: 97.42606786 | I22: 97.42606786 | J22: 97.42606786 | K22: 97.42606786 | L22: 97.42606786
B23: Total 2 per ton of biomass produced | C23: =C22/'Biomass harvested submodel'!C8 -> -198.3686548 | D23: =D22/'Biomass harvested submodel'!D8 -> -37.49818396 | E23: =E22/'Biomass harvested submodel'!E8 -> 11.19948006 | F23: =F22/'Biomass harvested submodel'!F8 -> 16.23767798 | G23: =G22/'Biomass harvested submodel'!G8 -> 16.23767798 | H23: =H22/'Biomass harvested submodel'!H8 -> 16.23767798 | I23: =I22/'Biomass harvested submodel'!I8 -> 16.23767798 | J23: =J22/'Biomass harvested submodel'!J8 -> 16.23767798 | K23: =K22/'Biomass harvested submodel'!K8 -> 16.23767798 | L23: =L22/'Biomass harvested submodel'!L8 -> 16.23767798
B24: Total Profit 2 discounted | C24: =C22/(1+('Input-output'!$D$7))^'Cash flow'!C4-1 -> -269.4025482 | D24: =D22/(1+('Input-output'!$D$7))^'Cash flow'!D4-1 -> -130.5934528 | E24: =E22/(1+('Input-output'!$D$7))^'Cash flow'!E4-1 -> 59.66046903 | F24: =F22/(1+('Input-output'!$D$7))^'Cash flow'!F4-1 -> 83.99969714 | G24: =G22/(1+('Input-output'!$D$7))^'Cash flow'!G4-1 -> 81.14912259 | H24: =H22/(1+('Input-output'!$D$7))^'Cash flow'!H4-1 -> 78.39414573 | I24: =I22/(1+('Input-output'!$D$7))^'Cash flow'!I4-1 -> 75.73156058 | J24: =J22/(1+('Input-output'!$D$7))^'Cash flow'!J4-1 -> 73.15826866 | K24: =K22/(1+('Input-output'!$D$7))^'Cash flow'!K4-1 -> 70.6712754 | L24: =L22/(1+('Input-output'!$D$7))^'Cash flow'!L4-1 -> 68.26768667
B25: Total Profit 2 accumulated | C25: =C24 -> -269.4025482 | D25: =C25+D22 -> -408.1458289 | E25: =D25+E22 -> -340.9489485 | F25: -243.5228807 | G25: -146.0968128 | H25: -48.67074497 | I25: 48.75532289 | J25: 146.1813907 | K25: 243.6074586 | L25: 341.0335265
B26: Total Profit 2 optimistic | C26: =((C17*1.1)-(C13+C20)*0.9) -> -229.154505 | D26: =((D17*1.1)-(D13+D20)*0.9) -> -69.92395259 | E26: 149.5771923 | F26: 176.7834611 | G26: 176.7834611 | H26: 176.7834611 | I26: 176.7834611 | J26: 176.7834611 | K26: 176.7834611 | L26: 176.7834611
B27: Total Profit 2 optimistic, discounted | C27: =C26/(1+('Input-output'!$D$7))^'Cash flow'!C4-1 -> -222.4695129 | D27: =D26/(1+('Input-output'!$D$7))^'Cash flow'!D4-1 -> -66.31261485 | E27: =E26/(1+('Input-output'!$D$7))^'Cash flow'!E4-1 -> 134.0274387 | F27: =F26/(1+('Input-output'!$D$7))^'Cash flow'!F4-1 -> 153.235319 | G27: =G26/(1+('Input-output'!$D$7))^'Cash flow'!G4-1 -> 148.0628385 | H27: =H26/(1+('Input-output'!$D$7))^'Cash flow'!H4-1 -> 143.0638238 | I27: =I26/(1+('Input-output'!$D$7))^'Cash flow'!I4-1 -> 138.2324575 | J27: =J26/(1+('Input-output'!$D$7))^'Cash flow'!J4-1 -> 133.5631173 | K27: =K26/(1+('Input-output'!$D$7))^'Cash flow'!K4-1 -> 129.0503695 | L27: =L26/(1+('Input-output'!$D$7))^'Cash flow'!L4-1 -> 124.6889625
B29: Total Profit 2 optimistic, accumlated | C29: =C26 -> -229.154505 | D29: =C29+D26 -> -299.0784576 | E29: =D29+E26 -> -149.5012653 | F29: 27.2821958 | G29: 204.0656569 | H29: 380.8491179 | I29: 557.632579 | J29: 734.4160401 | K29: 911.1995012 | L29: 1087.982962
B30: Total Profit 2 Pessimistic | C30: =((C17*0.9)-(C13+C20)*1.1) -> -326.2777283 | D30: =((D17*0.9)-(D13+D20)*1.1) -> -207.5626087 | E30: -15.18343161 | F30: 18.06867464 | G30: 18.06867464 | H30: 18.06867464 | I30: 18.06867464 | J30: 18.06867464 | K30: 18.06867464 | L30: 18.06867464
B31: Total Profit 2 Pessimistic, discounted | C31: =C30/(1+('Input-output'!$D$7))^'Cash flow'!C4-1 -> -316.3355836 | D31: =D30/(1+('Input-output'!$D$7))^'Cash flow'!D4-1 -> -194.8742908 | E31: =E30/(1+('Input-output'!$D$7))^'Cash flow'!E4-1 -> -14.70650063 | F31: =F30/(1+('Input-output'!$D$7))^'Cash flow'!F4-1 -> 14.76407533 | G31: =G30/(1+('Input-output'!$D$7))^'Cash flow'!G4-1 -> 14.23540671 | H31: =H30/(1+('Input-output'!$D$7))^'Cash flow'!H4-1 -> 13.72446768 | I31: =I30/(1+('Input-output'!$D$7))^'Cash flow'!I4-1 -> 13.23066366 | J31: =J30/(1+('Input-output'!$D$7))^'Cash flow'!J4-1 -> 12.75341998 | K31: =K30/(1+('Input-output'!$D$7))^'Cash flow'!K4-1 -> 12.29218129 | L31: =L30/(1+('Input-output'!$D$7))^'Cash flow'!L4-1 -> 11.84641084
B33: Total Profit 2 Pessimistic, Accumulated | C33: =C30 -> -326.2777283 | D33: =C33+D30 -> -533.8403371 | E33: =D33+E30 -> -549.0237687 | F33: -530.955094 | G33: -512.8864194 | H33: -494.8177447 | I33: -476.7490701 | J33: -458.6803954 | K33: -440.6117208 | L33: -422.5430462
I36: Acres | J36: ='Input-output'!D8 -> 50
B37: Cash Flow diagram (total)
B39: Year | C39: 0 | D39: 1 | E39: 2 | F39: 3 | G39: 4 | H39: 5 | I39: 6 | J39: 7 | K39: 8 | L39: 9
B40: Expenditures
B41: land costs and insurance | C41: ='Input-output'!D10*'Input-output'!D8 -> 0 | D41: ='Input-output'!D10*J36 -> 0 | E41: ='Input-output'!D10*J36 -> 0 | F41: ='Input-output'!D10*J36 -> 0 | G41: ='Input-output'!D10*J36 -> 0 | H41: ='Input-output'!D10*J36 -> 0 | I41: ='Input-output'!D10*J36 -> 0 | J41: ='Input-output'!D10*J36 -> 0 | K41: ='Input-output'!D10*J36 -> 0 | L41: ='Input-output'!D10*J36 -> 0
B42: Administration cost | C42: ='Input-output'!D11*J36 -> 0 | D42: ='Input-output'!D11*J36 -> 0 | E42: ='Input-output'!D11*J36 -> 0 | F42: ='Input-output'!D11*J36 -> 0 | G42: ='Input-output'!D11*J36 -> 0 | H42: ='Input-output'!D11*J36 -> 0 | I42: ='Input-output'!D11*J36 -> 0 | J42: ='Input-output'!D11*J36 -> 0 | K42: ='Input-output'!D11*J36 -> 0 | L42: ='Input-output'!D11*J36 -> 0
B43: Planting and establishment cost | C43: ='Planting and Est. submodel'!J65*J36 -> 8776.4 | D43: =C43*0.2 -> 1755.28 | E43: 0 | F43: 0 | G43: 0 | H43: 0 | I43: 0 | J43: 0 | K43: 0 | L43: 0
B44: Storage Cost | C44: ='Storage submodel'!C84 -> 3122.453125 | D44: ='Storage submodel'!D84 -> 2202.434375 | E44: ='Storage submodel'!E84 -> 2631.959375 | F44: ='Storage submodel'!F84 -> 1120.5 | G44: ='Storage submodel'!G84 -> 1120.5 | H44: ='Storage submodel'!H84 -> 1120.5 | I44: ='Storage submodel'!I84 -> 1120.5 | J44: ='Storage submodel'!J84 -> 1120.5 | K44: ='Storage submodel'!K84 -> 1120.5 | L44: ='Storage submodel'!L84 -> 1120.5
B45: Stand maintenance cost | C45: 0 | D45: ='Stand Maint. Submodel'!H21*J36 -> 8913.75 | E45: ='Stand Maint. Submodel'!$H$23*$J$36 -> 7863.75 | F45: ='Stand Maint. Submodel'!$H$23*$J$36 -> 7863.75 | G45: ='Stand Maint. Submodel'!$H$23*$J$36 -> 7863.75 | H45: ='Stand Maint. Submodel'!$H$23*$J$36 -> 7863.75 | I45: ='Stand Maint. Submodel'!$H$23*$J$36 -> 7863.75 | J45: ='Stand Maint. Submodel'!$H$23*$J$36 -> 7863.75 | K45: ='Stand Maint. Submodel'!$H$23*$J$36 -> 7863.75 | L45: ='Stand Maint. Submodel'!$H$23*$J$36 -> 7863.75
B46: Harvest Cost | C46: ='Harvest submodel'!L44*J36 -> 6808.585 | D46: ='Harvest submodel'!L44*J36 -> 6808.585 | E46: ='Harvest submodel'!L44*J36 -> 6808.585 | F46: ='Harvest submodel'!L44*J36 -> 6808.585 | G46: ='Harvest submodel'!L44*J36 -> 6808.585 | H46: ='Harvest submodel'!L44*J36 -> 6808.585 | I46: ='Harvest submodel'!L44*J36 -> 6808.585 | J46: ='Harvest submodel'!L44*J36 -> 6808.585 | K46: ='Harvest submodel'!L44*J36 -> 6808.585 | L46: ='Harvest submodel'!L44*J36 -> 6808.585
B47: Transportation Cost | C47: ='Trans. submodel'!D30*J36 -> 375.8677083 | D47: ='Trans. submodel'!D39*J36 -> 993.3646577 | E47: ='Trans. submodel'!D48*J36 -> 1610.861607 | F47: ='Trans. submodel'!D57*J36 -> 1610.861607 | G47: ='Trans. submodel'!D66*J36 -> 1610.861607 | H47: ='Trans. submodel'!L30*J36 -> 1610.861607 | I47: ='Trans. submodel'!L39*J36 -> 1610.861607 | J47: ='Trans. submodel'!L48*J36 -> 1610.861607 | K47: ='Trans. submodel'!L57*J36 -> 1610.861607 | L47: ='Trans. submodel'!L66*J36 -> 1610.861607
B48: Total Expenditures | C48: =SUM(C41:C47) -> 19083.30583 | D48: 20673.41403 | E48: 18915.15598 | F48: 17403.69661 | G48: 17403.69661 | H48: 17403.69661 | I48: 17403.69661 | J48: 17403.69661 | K48: 17403.69661 | L48: 17403.69661
B49: Revenues
B50: Acreage incentive Payments | C50: =C15*J36 -> 0 | D50: =D15*J36 -> 0 | E50: =E15*J36 -> 0 | F50: =F15*J36 -> 0 | G50: =G15*J36 -> 0 | H50: =H15*J36 -> 0 | I50: =I15*J36 -> 0 | J50: =J15*J36 -> 0 | K50: =K15*J36 -> 0 | L50: =L15*J36 -> 0
B51: Biomass | C51: =(('Storage submodel'!C80/'Input-output'!D8)*'Input-output'!D14)*J36 -> 5197.5 | D51: =(('Storage submodel'!D80/'Input-output'!D8)*'Input-output'!D14)*J36 -> 13736.25 | E51: =(('Storage submodel'!E80/'Input-output'!D8)*'Input-output'!D14)*J36 -> 22275 | F51: =(('Storage submodel'!F80/'Input-output'!D8)*'Input-output'!D14)*J36 -> 22275 | G51: =(('Storage submodel'!G80/'Input-output'!D8)*'Input-output'!D14)*J36 -> 22275 | H51: =(('Storage submodel'!H80/'Input-output'!D8)*'Input-output'!D14)*J36 -> 22275 | I51: =(('Storage submodel'!I80/'Input-output'!D8)*'Input-output'!D14)*J36 -> 22275 | J51: =(('Storage submodel'!J80/'Input-output'!D8)*'Input-output'!D14)*J36 -> 22275 | K51: =(('Storage submodel'!K80/'Input-output'!D8)*'Input-output'!D14)*J36 -> 22275 | L51: =(('Storage submodel'!L80/'Input-output'!D8)*'Input-output'!D14)*J36 -> 22275
B52: Total Revenues | C52: =SUM(C50:C51) -> 5197.5 | D52: =SUM(D50:D51) -> 13736.25 | E52: 22275 | F52: 22275 | G52: 22275 | H52: 22275 | I52: 22275 | J52: 22275 | K52: 22275 | L52: 22275
B53: Total 1 | C53: =C52-C48 -> -13885.80583 | D53: -6937.164033 | E53: 3359.844018 | F53: 4871.303393 | G53: 4871.303393 | H53: 4871.303393 | I53: 4871.303393 | J53: 4871.303393 | K53: 4871.303393 | L53: 4871.303393
B54: Other costs
B55: Loan Payments | C55: =-PMT('Input-output'!D20,'Input-output'!D9,'Input-output'!D19) -> 0 | D55: =-PMT('Input-output'!D20,'Input-output'!D9,'Input-output'!D19) -> 0 | E55: =-PMT('Input-output'!D20,'Input-output'!D9,'Input-output'!D19) -> 0 | F55: =-PMT('Input-output'!D20,'Input-output'!D9,'Input-output'!D19) -> 0 | G55: =-PMT('Input-output'!D20,'Input-output'!D9,'Input-output'!D19) -> 0 | H55: =-PMT('Input-output'!D20,'Input-output'!D9,'Input-output'!D19) -> 0 | I55: =-PMT('Input-output'!D20,'Input-output'!D9,'Input-output'!D19) -> 0 | J55: =-PMT('Input-output'!D20,'Input-output'!D9,'Input-output'!D19) -> 0 | K55: =-PMT('Input-output'!D20,'Input-output'!D9,'Input-output'!D19) -> 0 | L55: =-PMT('Input-output'!D20,'Input-output'!D9,'Input-output'!D19) -> 0
B56: Total Costs | C56: =C48+C55 -> 19083.30583 | D56: =D48+D55 -> 20673.41403 | E56: 18915.15598 | F56: 17403.69661 | G56: 17403.69661 | H56: 17403.69661 | I56: 17403.69661 | J56: 17403.69661 | K56: 17403.69661 | L56: 17403.69661
B57: Total 2 | C57: =C53-C55 -> -13885.80583 | D57: =D53-D55 -> -6937.164033 | E57: 3359.844018 | F57: 4871.303393 | G57: 4871.303393 | H57: 4871.303393 | I57: 4871.303393 | J57: 4871.303393 | K57: 4871.303393 | L57: 4871.303393
B58: Total 2 per ton of biomass produced | C58: =C57/'Biomass harvested submodel'!C12 -> -198.3686548 | D58: =D57/'Biomass harvested submodel'!D12 -> -37.49818396 | E58: =E57/'Biomass harvested submodel'!E12 -> 11.19948006 | F58: =F57/'Biomass harvested submodel'!F12 -> 16.23767798 | G58: =G57/'Biomass harvested submodel'!G12 -> 16.23767798 | H58: =H57/'Biomass harvested submodel'!H12 -> 16.23767798 | I58: =I57/'Biomass harvested submodel'!I12 -> 16.23767798 | J58: =J57/'Biomass harvested submodel'!J12 -> 16.23767798 | K58: =K57/'Biomass harvested submodel'!K12 -> 16.23767798 | L58: =L57/'Biomass harvested submodel'!L12 -> 16.23767798
B59: Total 2 discounted | C59: =C57/(1+('Input-output'!D7))^'Cash flow'!C39 -> -13885.80583 | D59: =D57/(1+('Input-output'!D7))^'Cash flow'!D39 -> -6704.517283 | E59: =E57/(1+('Input-output'!D7))^'Cash flow'!E39 -> 3138.269365 | F59: =F57/(1+('Input-output'!D7))^'Cash flow'!F39 -> 4397.459332 | G59: =G57/(1+('Input-output'!D7))^'Cash flow'!G39 -> 4249.984857 | H59: =H57/(1+('Input-output'!D7))^'Cash flow'!H39 -> 4107.456129 | I59: =I57/(1+('Input-output'!D7))^'Cash flow'!I39 -> 3969.707287 | J59: =J57/(1+('Input-output'!D7))^'Cash flow'!J39 -> 3836.578029 | K59: =K57/(1+('Input-output'!D7))^'Cash flow'!K39 -> 3707.913433 | L59: =L57/(1+('Input-output'!D7))^'Cash flow'!L39 -> 3583.56377
B60: Total 2 accumulated | C60: =C59 -> -13885.80583 | D60: =C60+D57 -> -20822.96987 | E60: =D60+E57 -> -17463.12585 | F60: -12591.82246 | G60: -7720.519062 | H60: -2849.21567 | I60: 2022.087723 | J60: 6893.391116 | K60: 11764.69451 | L60: 16635.9979
B61: Total 2 optimistic | C61: =(C50+C51*1.1)-C56 -> -13366.05583 | D61: =(D50+D51*1.1)-D56 -> -5563.539033 | E61: =(E50+E51*1.1)-E56 -> 5587.344018 | F61: =(F50+F51*1.1)-F56 -> 7098.803393 | G61: 7098.803393 | H61: 7098.803393 | I61: 7098.803393 | J61: 7098.803393 | K61: 7098.803393 | L61: 7098.803393
B62: Total 2 optimistic, discounted | C62: =C61/(1+('Input-output'!D7))^'Cash flow'!C39 -> -13366.05583 | D62: =D61/(1+('Input-output'!D7))^'Cash flow'!D39 -> -5376.95857 | E62: =E61/(1+('Input-output'!D7))^'Cash flow'!E39 -> 5218.870421 | F62: =F61/(1+('Input-output'!D7))^'Cash flow'!F39 -> 6408.284746 | G62: =G61/(1+('Input-output'!D7))^'Cash flow'!G39 -> 6193.374645 | H62: =H61/(1+('Input-output'!D7))^'Cash flow'!H39 -> 5985.671833 | I62: =I61/(1+('Input-output'!D7))^'Cash flow'!I39 -> 5784.934602 | J62: =J61/(1+('Input-output'!D7))^'Cash flow'!J39 -> 5590.929354 | K62: =K61/(1+('Input-output'!D7))^'Cash flow'!K39 -> 5403.430321 | L62: =L61/(1+('Input-output'!D7))^'Cash flow'!L39 -> 5222.219311
B64: Total 2 optimistic, accumlated | C64: =C61 -> -13366.05583 | D64: =C64+D61 -> -18929.59487 | E64: =D64+E61 -> -13342.25085 | F64: -6243.447455 | G64: 855.3559375 | H64: 7954.15933 | I64: 15052.96272 | J64: 22151.76612 | K64: 29250.56951 | L64: 36349.3729
B65: Total 2 Pessimistic | C65: =(C50+C51*0.9)-C56 -> -14405.55583 | D65: =(D50+D51*0.9)-D56 -> -8310.789033 | E65: 1132.344018 | F65: 2643.803393 | G65: 2643.803393 | H65: 2643.803393 | I65: 2643.803393 | J65: 2643.803393 | K65: 2643.803393 | L65: 2643.803393
B66: Total 2 Pessimistic, discounted | C66: =C65/(1+('Input-output'!D7))^'Cash flow'!C39 -> -14405.55583 | D66: =D65/(1+('Input-output'!D7))^'Cash flow'!D39 -> -8032.075996 | E66: =E65/(1+('Input-output'!D7))^'Cash flow'!E39 -> 1057.668309 | F66: =F65/(1+('Input-output'!D7))^'Cash flow'!F39 -> 2386.633918 | G66: =G65/(1+('Input-output'!D7))^'Cash flow'!G39 -> 2306.595069 | H66: =H65/(1+('Input-output'!D7))^'Cash flow'!H39 -> 2229.240426 | I66: =I65/(1+('Input-output'!D7))^'Cash flow'!I39 -> 2154.479971 | J66: =J65/(1+('Input-output'!D7))^'Cash flow'!J39 -> 2082.226704 | K66: =K65/(1+('Input-output'!D7))^'Cash flow'!K39 -> 2012.396544 | L66: =L65/(1+('Input-output'!D7))^'Cash flow'!L39 -> 1944.908229
B68: Total 2 Pessimistic, Accumulated | C68: =C65 -> -14405.55583 | D68: =C68+D65 -> -22716.34487 | E68: =D68+E65 -> -21584.00085 | F68: -18940.19746 | G68: -16296.39406 | H68: -13652.59067 | I68: -11008.78728 | J68: -8364.983884 | K68: -5721.180491 | L68: -3077.377098
C72: NPV Sensitivity Analysis
D73: 60 | E73: 65 | F73: 70 | G73: 75 | H73: 80 | I73: 85 | J73: Price/dry ton
C74: 5 | D74: -37723.11 | E74: -28586.33 | F74: -19440.65 | G74: -10294.92 | H74: -1149.19 | I74: 7996.54
C75: 6 | D75: -22158.67 | E75: -11421.84 | F75: -685.02 | G75: 10051.81 | H75: 20788.64 | I75: 31525.46
C76: 7 | D76: -6585.23 | E76: 5742.69 | F76: 18070.62 | G76: 30398.54 | H76: 42726.4 | I76: 55054.39
C77: 8 | D77: 8988.2 | E77: 22907.23 | F77: 36826.23 | G77: 50745.27 | H77: 64664.3 | I77: 78593.32
C78: Mature yield

Sheet Cost Distribution
B1: =Welcome!$A$5 -> Project Name Here
B2: Cost distribution in %, undiscounted
B4: Costs (per acre) | C4: US$/acre | D4: US$ total per year (avg.) | E4: % of total
B5: Planting and Establishment | C5: ='Planting and Est. submodel'!J65 -> 175.528 | D5: =(C5*'Input-output'!D8)/10 -> 877.64 | E5: =D5/SUM($D$5:$D$11) -> 0.04700227197
B6: Stand Maintenance | C6: =('Stand Maint. Submodel'!H21*(1/9)+'Stand Maint. Submodel'!H23*(8/9)) -> 159.6083333 | D6: =SUM('Cash flow'!D45:L45)/9 -> 7980.416667 | E6: =D6/SUM($D$5:$D$11) -> 0.4273935948
B7: Harvest | C7: ='Harvest submodel'!L44 -> 136.1717 | D7: =SUM('Cash flow'!C46:L46)/10 -> 6808.585 | E7: 0.3646358004
B8: Land cost and insurance | C8: ='Input-output'!D10*'Input-output'!D8 -> 0 | D8: =SUM('Cash flow'!C41:L41)/10 -> 0 | E8: 0
B9: administration | C9: ='Input-output'!D11*'Input-output'!D8 -> 0 | D9: =SUM('Cash flow'!C42:L42)/10 -> 0 | E9: 0
B10: Transportation (average per year) | C10: =AVERAGE('Trans. submodel'!D57,'Trans. submodel'!D66,'Trans. submodel'!D48,'Trans. submodel'!D39,'Trans. submodel'!D30,'Trans. submodel'!L30,'Trans. submodel'!L39,'Trans. submodel'!L48,'Trans. submodel'!L57,'Trans. submodel'!L66) -> 28.51225045 | D10: =SUM('Cash flow'!C47:L47)/10 -> 1425.612522 | E10: 0.07634910384
B11: Storage Cost | C11: =D11/'Input-output'!D8/10 -> 3.160069375 | D11: =SUM('Storage submodel'!C84:L84)/10 -> 1580.034688 | E11: 0.08461922895

Sheet Yearly Cash flow
B1: =Welcome!$A$5 -> Project Name Here
B2: Yearly Cash flow in US $ (per Acre), Undiscounted
B20: Yearly Cashflow in US $ (total), Undiscounted

Sheet Accumulated cash flow
B1: =Welcome!$A$5 -> Project Name Here
B2: Accumulated Cash Flow in US $ (per Acre)
B24: Accumulated Cash Flow in US $ (total)

Sheet Planting and Est. submodel
B1: =Welcome!$A$5 -> Project Name Here
B2: Planting and Establishment Submodel
B4: General data | H4: Equipment
B5: Acres to be planted | C5: acre | D5: ='Input-output'!D8 -> 50
B6: Planting time | C6: hrs/acre | D6: 0.68 | E6: 0.68 | G6: Equipment Delivery | H6: Transport for drill | I6: $/mi | J6: 0
B7: Total planting time | C7: hrs | D7: =+D5*D6 -> 34 | H7: Transport for tractor | I7: $/mi | J7: 0
H8: Transport for sprayer | I8: $/mi | J8: 0
B9: Labor | H9: Tranport for mower | I9: $/mi | J9: 0
B10: No. of crews at site | D10: 1 | E10: 1 | H10: Distance | I10: mi | J10: 0
B11: Labors/crew | D11: 1 | E11: 1 | H11: Total delivery costs | I11: $ | J11: =SUM(J6:J9)*J10*2 -> 0
B12: Laborer rate | C12: $/hr | D12: 9.75 | E12: 9.75 | G12: Tractor | H12: Fixed cost per hour | I12: $/hr | J12: 8.21 | K12: 8.21
B13: hours at site/crew | C13: Hrs | D13: =+D7/D10 -> 34 | H13: Variable cost per hour | I13: $/hr | J13: 29.04 | K13: 29.04
B14: Indirect labor costs | C14: % | D14: 0 | E14: 0 | H14: Hours per acre | I14: hr/acre | J14: 0.54 | K14: 0.54
B15: Total | C15: $ | D15: =+D10*D7*(D11*D12)*(1+D14) -> 331.5 | H15: Fixed cost per acre | I15: $/acre | J15: =J12*J14 -> 4.4334
B16: Per acre | D16: =+D15/D5 -> 6.63 | H16: Variable cost per acre | I16: $/acre | J16: =J13*J14 -> 15.6816
H17: Repair cost per acre | I17: $/acre | J17: 4.38 | K17: 4.38
B18: Travel costs | H18: Fuel cost per acre | I18: $/acre | J18: 11.31 | K18: 11.31
B19: No. of vehicles | D19: 1 | H19: Total tractor costs | I19: $ | J19: =((J15*D5)+(J16*D5)) -> 1005.75
B20: Vehicle costs | C20: $/mi | D20: 0.4 | G20: No-till drill | H20: Fixed cost per hour | I20: $/hr | J20: 11.49 | K20: 11.49
B21: Distance | C21: Mi | D21: 0 | H21: Variable cost per hour | I21: $/hr | J21: 8.5 | K21: 8.5
B22: Total nights | D22: 0 | H22: Hours per acre | I22: hr/acre | J22: 0.24 | K22: 0.24
B23: Hotel | C23: $/night/person | D23: 0 | H23: Fixed cost per acre | I23: $/acre | J23: =J20*J22 -> 2.7576
B24: Meals | C24: $/day/person | D24: 0 | H24: Variable cost per acre | I24: $/acre | J24: =J21*J22 -> 2.04
B25: Total | C25: $ | D25: =D19*D21*2*D20+D22*(D23+D24) -> 0 | H25: Repair cost per acre | I25: $/acre | J25: 2 | K25: 2
H26: Total drill costs | I26: $ | J26: =(D5*(J23+J24)) -> 239.88
B27: Yellow cells: insert numbers, insert "0" if not applicable | G27: Sprayer 60" boom | H27: Fixed cost per hour | I27: $/hr | J27: 5.78 | K27: 5.78
B28: Grey cells: output from previous inputs | H28: Variable cost per hour | I28: $/hr | J28: 3.92 | K28: 3.92
H29: Hours per acre | I29: hr/acre | J29: 0.14 | K29: 0.14
H30: Fixed cost per acre | I30: $/acre | J30: =J27*J29 -> 0.8092
H31: Variable cost per acre | I31: $/acre | J31: =J28*J29 -> 0.5488
H32: Repair cost per acre | I32: $/acre | J32: 0.55 | K32: 0.55
H33: Total sprayer costs | I33: $ | J33: =(D5*(J30+J31)) -> 67.9
G34: Rotary mower 15' | H34: Fixed cost per hour | I34: $/hr | J34: 5.78 | K34: 5.78
H35: Variable cost per hour | I35: $/hr | J35: 3.92 | K35: 3.92
H36: Hours per acre | I36: hr/acre | J36: 0.1 | K36: 0.1
H37: Fixed cost per acre | I37: $/acre | J37: =J34*J36 -> 0.578
H38: Variable cost per acre | I38: $/acre | J38: =J35*J36 -> 0.392
H39: Repair cost per acre | I39: $/acre | J39: 1.14 | K39: 1.14
H40: Total mower costs | I40: $ | J40: =(D5*(J37+J38)) -> 48.5
H41: Total equipment cost | I41: $ | J41: =J40+J33+J26+J19+J11 -> 1362.03
H42: Total equipment cost per acre | I42: $/acre | J42: =J41/D5 -> 27.2406
H44: Supplies
G45: Seed | H45: Seed Price | I45: $/pound | J45: 8.25
H46: Pounds Seed Per Acre | I46: pounds/acre | J46: 6 | K46: 6
G47: Fertilizer | H47: Fertilizer P205 Price | I47: $/pound | J47: 0.8 | K47: 0.8
H48: Fertilizer P205 Pounds per Acre | I48: pounds/acre | J48: 40 | K48: 40
H49: Fertilizer K20 Price | I49: $/pound | J49: 0.75 | K49: 0.75
H50: Fertilizer K20 Pounds per Acre | I50: pounds/acre | J50: 80 | K50: 80
G51: Burndown and Herbicide | H51: Fall Burndown Glycophosate Price | I51: $/qt. | J51: 7.87 | K51: 7.87
H52: Fall Burndown Glycophosate Qt per Acre | I52: Qt./acre | J52: 1 | K52: 1
H53: Other supplies | I53: $/acre
H54: Establishment grant | I54: $/acre | J54: 0 | K54: 0
H55: Total | I55: $/acre | J55: =((J51*J52)+(((J45*J46)+(J47*J48)+(J49*J50)+J53)*D5)) -> 7082.87
H56: Total including grant | I56: $/acre | J56: =J55-J54*D5 -> 7082.87
H57: Total including grant per acre | I57: $/acre | J57: =J56/D5 -> 141.6574
H59: TOTALS
H60: Labor | I60: $ | J60: =D15 -> 331.5
H61: Travel | I61: $ | J61: =+D25 -> 0
H62: Equipment | I62: $ | J62: =+J41 -> 1362.03
H63: Supplies | I63: $ | J63: =+J56 -> 7082.87
H64: Total | I64: $ | J64: =SUM(J60:J63) -> 8776.4
H65: Total per acre | I65: $/acre | J65: =+J64/D5 -> 175.528

Sheet Stand Maint. Submodel
B1: =Welcome!$A$5 -> Project Name Here
B2: Stand Maintenance Submodel
B4: General input data
B5: Project Size | H5: ='Input-output'!D8 -> 50
B6: Nitrogen | G6: Pounds/acre | H6: 60 | I6: 60
B7: Nitrogen Price | G7: $/pound | H7: 0.76 | I7: 0.76
B8: P2O5 | G8: Pounds/acre | H8: 40 | I8: 40
B9: P2O5 Price | G9: $/pound | H9: 0.8 | I9: 0.8
B10: K2O | G10: Pounds/acre | H10: 80 | I10: 80
B11: K2O Price | G11: $/pound | H11: 0.75 | I11: 0.75
B12: Spring burndown | G12: Quantity/acre | H12: 1.5 | I12: 1.5
B13: Spring burndown Price | G13: $/quantity | H13: 7.87 | I13: 7.87
B14: Fall burndown | G14: Quantity/acre | H14: 1 | I14: 1
B15: Fall burndown price | G15: $/quantity | H15: 7.87 | I15: 7.87
B16: Broadleaf herbicide | G16: Quantity/acre | H16: 2 | I16: 2
B17: Broadleaf herbicide price | G17: $/quantity | H17: 2.5 | I17: 2.5
B18: Grass herbicide | G18: Quantity/acre | H18: 2 | I18: 2
B19: Grass herbicide price | G19: $/quantity | H19: 8 | I19: 8
B20: Total stand maintenance cost second year | H20: =H21*H5 -> 8913.75
B21: Total stand maintenance cost second year per acre | H21: =(H6*H7+H8*H9+H10*H11)+(H12*H13+H14*H15+H16*H17+H18*H19) -> 178.275
B22: Total stand maintenance cost after second year | H22: =H23*H5 -> 7863.75
B23: Total stand maintenance cost after second year per acre | H23: =(H6*H7+H8*H9+H10*H11)+(H12*H13+H14*H15) -> 157.275
B24: Total stand maintence cost second year per ton | H24: =H20/'Biomass harvested submodel'!D12 -> 48.18243243
B25: Total stand maintence cost after second year per ton | H25: =H22/('Biomass harvested submodel'!E12) -> 26.2125

Sheet Harvest submodel
B1: =Welcome!$A$5 -> Project Name Here
B2: Harvest Submodel
B4: General Input Data | J4: Equipment
B5: Acres to be harvested | C5: acres | D5: =+'Input-output'!D8 -> 50 | I5: Tractor | J5: Fixed cost per hour | K5: $/hr | L5: 8.21 | M5: 8.21
B6: Harvest speed | C6: hr./acre | D6: 1.48 | E6: 1.48 | J6: Variable cost per hour | K6: $/hr | L6: 29.04 | M6: 29.04
J7: Hours per acre | K7: hr/acre | L7: 2.03 | M7: 3.14
J8: Fixed cost per acre | K8: $/acre | L8: =(L5*L7) -> 16.6663
J9: Variable cost per acre | K9: $/acre | L9: =(L6*L7) -> 58.9512
J10: Fuel cost per acre | K10: $/acre | L10: 42.56 | M10: 42.56
J11: Total tractor costs | K11: $ | L11: =((L8*D5)+(L9*D5)) -> 3780.875
I12: Mower | J12: Fixed cost per hour | K12: $/hr | L12: 3.3 | M12: 3.3
J13: Variable cost per hour | K13: $/hr | L13: 4.88 | M13: 4.88
J14: Hours per acre | K14: hr/acre | L14: 0.26 | M14: 0.26
J15: Fixed cost per acre | K15: $/acre | L15: =L12*L14 -> 0.858
B16: Labor | J16: Variable cost per acre | K16: $/acre | L16: =L13*L14 -> 1.2688
B17: no. crews at site | D17: 1 | E17: 1 | J17: Total mower costs | K17: $ | L17: =((L15*D5)+(L16*D5)) -> 106.34
B18: Laborer/ crew | D18: 1 | E18: 1 | I18: Rake | J18: Fixed cost per hour | K18: $/hr | L18: 1.37 | M18: 1.37
B19: Foreman/crew | D19: 1 | E19: 1 | J19: Variable cost per hour | K19: $/hr | L19: 0.72 | M19: 0.72
B20: Laborer rate | C20: $/hr | D20: 9.75 | E20: 9.75 | J20: Hours per acre | K20: hr/acre | L20: 0.17 | M20: 0.29
B21: Foreman rate | C21: $/hr | D21: 9.75 | E21: 9.75 | J21: Fixed cost per acre | K21: $/acre | L21: =L18*L20 -> 0.2329
B22: Hours at site/crew | D22: =D5*D6 -> 74 | J22: Variable cost per acre | K22: $/acre | L22: =L19*L20 -> 0.1224
B23: indirect labor costs | C23: % | D23: 0 | E23: 0 | J23: Total rake costs | K23: $ | L23: =((L21*D5)+(L22*D5)) -> 17.765
B24: total | C24: $ | D24: =D17*D22*(D18*D20*(1+D23*0.01)+D19*D21*(1+(D23*0.01))) -> 1443 | I24: Baler | J24: Fixed cost per hour | K24: $/hr | L24: 14.62 | M24: 14.62
B25: Total per acre | C25: $/acre | D25: =D24/D5 -> 28.86 | J25: Variable cost per hour | K25: $/hr | L25: 13.8 | M25: 13.8
J26: Hours per acre | K26: hr/acre | L26: 0.75 | M26: 0.75
B27: Travel Costs | J27: Fixed cost per acre | K27: $/acre | L27: =L24*L26 -> 10.965
B28: No of Vehicles | D28: 1 | E28: 1 | J28: Variable cost per acre | K28: $/acre | L28: =L25*L26 -> 10.35
B29: Vehicle costs | C29: $/mi | D29: 0.4 | E29: 0.4 | J29: Total baler costs | K29: $ | L29: =((L27*D5)+(L28*D5)) -> 1065.75
B30: Distance (one way) | C30: mi | D30: 50 | E30: 50 | I30: Loader | J30: Fixed cost per hour | K30: $/hr | L30: 7.27 | M30: 7.27
B31: Total nights | D31: 0 | E31: 0 | J31: Variable cost per hour | K31: $/hr | L31: 3 | M31: 3
B32: Hotel costs | C32: $/night/person | D32: 0 | E32: 0 | J32: Hours per acre | K32: hr/acre | L32: 0.73 | M32: 1.07
B33: Meal costs | C33: $/night/person | D33: 0 | E33: 0 | J33: Fixed cost per acre | K33: $/acre | L33: =L30*L32 -> 5.3071
B34: Total crew travel costs | C34: $ | D34: =(D28*D30*D29)+(D31*D32)+(D31*D33) -> 20 | J34: Variable cost per acre | K34: $/acre | L34: =L31*L32 -> 2.19
J35: Total loader costs | K35: $ | L35: =((L33*D5)+(L34*D5)) -> 374.855
B36: Yellow cells: insert numbers, insert "0" if not applicable | J36: Total equipment costs | K36: $ | L36: =L11+L17+L23+L29+L35 -> 5345.585
B37: Grey cells: output from previous inputs | J37: Total equipment costs per acre | K37: $/acre | L37: =L36/D5 -> 106.9117
J39: TOTALS
J40: Labor | K40: $ | L40: =D24 -> 1443
J41: Travel | K41: $ | L41: =D34 -> 20
J42: Equipment | K42: $ | L42: =L36 -> 5345.585
J43: Total | K43: $ | L43: =L42+L41+L40 -> 6808.585
J44: Total per Acre | K44: $/acre | L44: =L43/D5 -> 136.1717
I48: Cost per ton by year
I49: Year | J49: Harvest cost per ton
I50: 1 | J50: =$L$43/'Biomass harvested submodel'!C12 -> 97.2655
I51: 2 | J51: =L43/'Biomass harvested submodel'!D12 -> 36.80316216
I52: 3 | J52: =L43/'Biomass harvested submodel'!E12 -> 22.69528333
I53: 4 | J53: =L43/'Biomass harvested submodel'!F12 -> 22.69528333
I54: 5 | J54: =L43/'Biomass harvested submodel'!G12 -> 22.69528333
I55: 6 | J55: =L43/'Biomass harvested submodel'!H12 -> 22.69528333
I56: 7 | J56: =L43/'Biomass harvested submodel'!I12 -> 22.69528333
I57: 8 | J57: =L43/'Biomass harvested submodel'!J12 -> 22.69528333
I58: 9 | J58: =L43/'Biomass harvested submodel'!K12 -> 22.69528333
I59: 10 | J59: =L43/'Biomass harvested submodel'!L12 -> 22.69528333

Sheet Trans. submodel
B1: =Welcome!$A$5 -> Project Name Here
B2: Transportation Submodel
B4: General Input Data | J4: Equipment
B5: Project size | C5: acres | D5: ='Input-output'!D8 -> 50 | J5: Tractor-trailer costs | K5: $/mi | L5: 0.5 | M5: 0.5
B6: Highway Speed | C6: mi/hr | D6: 50 | E6: 50 | J6: Fuel consumption | K6: mi/g | L6: 7 | M6: 7
B7: Field road speed | C7: mi/hr | D7: 20 | E7: 20 | J7: Fuel price | K7: $/g | L7: 3 | M7: 3
B8: Distance on highway (one way) | C8: mi | D8: 25 | E8: 25 | J8: Maximum capacity | K8: tons | L8: =IF('Storage submodel'!G10="Round bales",14.4,24) -> 14.4
B9: Distance on field road (one way) | C9: mi | D9: 1 | E9: 1
B10: Total driving time roundtrip | C10: hrs | D10: =((D8*2)/D6)+((D9*2)/D7) -> 1.1
B11: Loading time | C11: min | D11: 5 | E11: 5
B12: unloading time | C12: min | D12: 15 | E12: 15
B13: Total time per trip | C13: hrs | D13: =D10+(D11/60)+(D12/60) -> 1.433333333
B15: Labor
B16: Driver wage | C16: $/hr | D16: 9.5 | E16: 9.5
B17: Indirect Labor costs | C17: % | D17: 0 | E17: 0
B18: Average Loading and unloading cost | C18: $ | D18: 16.2 | E18: 16.2
B20: Yellow cells: insert numbers, insert "0" if not applicable
B21: Grey cells: output from previous inputs
B24: Cost in year 1 | J24: Cost in year 6
B25: Total trips | D25: ='Storage submodel'!C80/L8 -> 4.8125 | J25: Total trips | L25: ='Storage submodel'!H80/L8 -> 20.625
B26: Total time | C26: hrs | D26: =D25*D13 -> 6.897916667 | J26: Total time | K26: hrs | L26: =L25*D13 -> 29.5625
B27: Labor | C27: $ | D27: =(D18*D25)+((D16+D16*D17)*D26) -> 143.4927083 | J27: Labor | K27: $ | L27: =(D18*L25)+(D16+D16*D17)*L26 -> 614.96875
B28: Equipment | C28: $ | D28: =(D8+D9)*2*(L5+L7/L6)*D25 -> 232.375 | J28: Equipment | K28: $ | L28: =(D8+D9)*2*(L5+L7/L6)*L25 -> 995.8928571
B29: Total | C29: $ | D29: =D27+D28 -> 375.8677083 | J29: Total | K29: $ | L29: =L28+L27 -> 1610.861607
B30: Total per acre | C30: $/acre | D30: =D29/D5 -> 7.517354167 | J30: Total per acre | K30: $/acre | L30: =L29/D5 -> 32.21723214
B31: Total per ton | C31: $/odt | D31: =D29/'Storage submodel'!C80 -> 5.423776455 | J31: Total per ton | K31: $/odt | L31: =L29/'Storage submodel'!H80 -> 5.423776455
B33: Cost in year 2 | J33: Cost in year 7
B34: Total trips | D34: ='Storage submodel'!D80/'Trans. submodel'!L8 -> 12.71875 | J34: Total trips | L34: ='Storage submodel'!I80/L8 -> 20.625
B35: Total time | C35: hrs | D35: =D34*D13 -> 18.23020833 | J35: Total time | K35: hrs | L35: =L34*D13 -> 29.5625
B36: Labor | C36: $ | D36: =(D18*D34+(D16+D16*D17)*D35) -> 379.2307292 | J36: Labor | K36: $ | L36: =(D18*L34+(D16+D16*D17)*L35) -> 614.96875
B37: Equipment | C37: $ | D37: =(D8+D9)*2*(L5+L7/L6)*D34 -> 614.1339286 | J37: Equipment | K37: $ | L37: =(D8+D9)*2*(L5+L7/L6)*L34 -> 995.8928571
B38: Total | C38: $ | D38: =D37+D36 -> 993.3646577 | J38: Total | K38: $ | L38: =L37+L36 -> 1610.861607
B39: Total per acre | C39: $/acre | D39: =D38/D5 -> 19.86729315 | J39: Total per acre | K39: $/acre | L39: =L38/D5 -> 32.21723214
B40: Total per ton | C40: $/odt | D40: =D38/'Storage submodel'!D80 -> 5.423776455 | J40: Total per ton | K40: $/odt | L40: =L38/'Storage submodel'!I80 -> 5.423776455
B42: Cost in year 3 | J42: Cost in year 8
B43: Total trips | D43: ='Storage submodel'!E80/L8 -> 20.625 | J43: Total trips | L43: ='Storage submodel'!K80/L8 -> 20.625
B44: Total time | C44: hrs | D44: =D43*D13 -> 29.5625 | J44: Total time | K44: hrs | L44: =L43*D13 -> 29.5625
B45: Labor | C45: $ | D45: =(D18*D43+(D16+D16*D17)*D44) -> 614.96875 | J45: Labor | K45: $ | L45: =(D18*L43+(D16+D16*D17)*L44) -> 614.96875
B46: Equipment | C46: $ | D46: =(D8+D9)*2*(L5+L7/L6)*D43 -> 995.8928571 | J46: Equipment | K46: $ | L46: =(D8+D9)*2*(L5+L7/L6)*L43 -> 995.8928571
B47: Total | C47: $ | D47: =D46+D45 -> 1610.861607 | J47: Total | K47: $ | L47: =L46+L45 -> 1610.861607
B48: Total per acre | C48: $/acre | D48: =D47/D5 -> 32.21723214 | J48: Total per acre | K48: $/acre | L48: =L47/D5 -> 32.21723214
B49: Total per ton | C49: $/odt | D49: =D47/'Storage submodel'!E80 -> 5.423776455 | J49: Total per ton | K49: $/odt | L49: =L47/'Storage submodel'!J80 -> 5.423776455
B51: Cost in year 4 | J51: Cost in year 9
B52: Total trips | D52: ='Storage submodel'!F80/L8 -> 20.625 | J52: Total trips | L52: ='Storage submodel'!K80/L8 -> 20.625
B53: Total time | C53: hrs | D53: =D52*D13 -> 29.5625 | J53: Total time | K53: hrs | L53: =L52*D13 -> 29.5625
B54: Labor | C54: $ | D54: =(D18*D52+(D16+D16*D17)*D53) -> 614.96875 | J54: Labor | K54: $ | L54: =(D18*L52+(D16+D16*D17)*L53) -> 614.96875
B55: Equipment | C55: $ | D55: =(D8+D9)*2*(L5+L7/L6)*D52 -> 995.8928571 | J55: Equipment | K55: $ | L55: =(D8+D9)*2*(L5+L7/L6)*L52 -> 995.8928571
B56: Total | C56: $ | D56: =D55+D54 -> 1610.861607 | J56: Total | K56: $ | L56: =L55+L54 -> 1610.861607
B57: Total per acre | C57: $/acre | D57: =D56/D5 -> 32.21723214 | J57: Total per acre | K57: $/acre | L57: =L56/D5 -> 32.21723214
B58: Total per ton | C58: $/odt | D58: =D56/'Storage submodel'!F80 -> 5.423776455 | J58: Total per ton | K58: $/odt | L58: =L56/'Storage submodel'!K80 -> 5.423776455
B60: Cost in year 5 | J60: Cost in year 10
B61: Total trips | D61: ='Storage submodel'!G80/L8 -> 20.625 | J61: Total trips | L61: ='Storage submodel'!L80/L8 -> 20.625
B62: Total time | C62: hrs | D62: =D61*D13 -> 29.5625 | J62: Total time | K62: hrs | L62: =L61*D13 -> 29.5625
B63: Labor | C63: $ | D63: =(D18*D61+(D16+D16*D17)*D62) -> 614.96875 | J63: Labor | K63: $ | L63: =D18*L61+(D16+D16*D17)*L62 -> 614.96875
B64: Equipment | C64: $ | D64: =(D8+D9)*2*(L5+L7/L6)*D61 -> 995.8928571 | J64: Equipment | K64: $ | L64: =(D8+D9)*2*(L5+L7/L6)*L61 -> 995.8928571
B65: Total | C65: $ | D65: =D64+D63 -> 1610.861607 | J65: Total | K65: $ | L65: =L64+L63 -> 1610.861607
B66: Total per acre | C66: $/acre | D66: =D65/D5 -> 32.21723214 | J66: Total per acre | K66: $/acre | L66: =L65/D5 -> 32.21723214
B67: Total per ton | C67: $/odt | D67: =D65/'Storage submodel'!G80 -> 5.423776455 | J67: Total per ton | K67: $/odt | L67: =L65/'Storage submodel'!L80 -> 5.423776455

Sheet Storage submodel
B1: =Welcome!$A$5 -> Project Name Here
B2: Storage Submodel
B4: General data
B5: Acres planted | F5: acres | G5: ='Input-output'!D8 -> 50
B9: Bailing method^
B10: Round bales | F10: Choose one | G10: Round bales
B11: Rectangular bales
B13: Storage time^ | M13: 0
B14: Storage time up to 200 days | F14: days | G14: 200 | M14: 1
B15: Percentage going directly to plant gate | F15: % | G15: 0
B16: Percentage being stored for up to 200 days | F16: % | G16: 1
B18: Storage method^ | F18: 1 if yes, 0 if no | I18: Dry matter loss after 200 days*
B19: Large round bale
B20: Tarp and Pallet | E20: 0 | G20: 1 | J20: 0.01
B21: Tarp and gravel | E21: 1 | G21: 0 | J21: 0.085
B22: Tarp on bare ground | G22: 0 | J22: 0.07
B23: Pallet no tarp | G23: 0 | J23: 0.182
B24: Gravel no tarp | G24: 0 | J24: 0.166
B25: Bare ground no tarp | G25: 0 | J25: 0.128
B26: Large rectangular bale
B27: Tarp and pallet | G27: 0 | J27: 0.137
B28: Tarp and gravel | G28: 0 | J28: 0.28
B29: Pallet no tarp | G29: 0 | J29: 0.48
B30: Gravel no tarp | G30: 0 | J30: 0.571
B32: *Calculated from unpublished work by Burton English, James Larson and Don Tyler at Milan Research and Education Center.
B33: ^ Only one storage method and baling type may be used for storage loss calculation in this worksheet.
B40: Dry matter loss schedule by year in tons
B41: Year | C41: 1 | D41: 2 | E41: 3 | F41: 4 | G41: 5 | H41: 6 | I41: 7 | J41: 8 | K41: 9 | L41: 10
B42: Storage method
B43: Large round bale
B44: Tarp and Pallet | C44: =IF(G20=1,(G14/200)*'Biomass harvested submodel'!C12*(G16)*0.01,0) -> 0.7 | D44: =IF(G20=1,(G14/200)*'Biomass harvested submodel'!D12*(G16)*0.01,0) -> 1.85 | E44: =IF(G20=1,(G14/200)*'Biomass harvested submodel'!E12*(G16)*0.01,0) -> 3 | F44: =IF(G20=1,(G14/200)*'Biomass harvested submodel'!F12*(G16)*0.01,0) -> 3 | G44: =IF(G20=1,(G14/200)*'Biomass harvested submodel'!G12*(G16)*0.01,0) -> 3 | H44: =IF(G20=1,(G14/200)*'Biomass harvested submodel'!H12*(G16)*0.01,0) -> 3 | I44: =IF(G20=1,(G14/200)*'Biomass harvested submodel'!I12*(G16)*0.01,0) -> 3 | J44: =IF(G20=1,(G14/200)*'Biomass harvested submodel'!J12*(G16)*0.01,0) -> 3 | K44: =IF(G20=1,(G14/200)*'Biomass harvested submodel'!K12*(G16)*0.01,0) -> 3 | L44: =IF(G20=1,(G14/200)*'Biomass harvested submodel'!L12*(G16)*0.01,0) -> 3
B45: Tarp and gravel | C45: =IF(G21=1,(G14/200)*'Biomass harvested submodel'!C12*(G16)*0.085,0) -> 0 | D45: =IF(G21=1,(G14/200)*'Biomass harvested submodel'!D12*(G16)*0.085,0) -> 0 | E45: =IF(G21=1,(G14/200)*'Biomass harvested submodel'!E12*(G16)*0.085,0) -> 0 | F45: =IF(G21=1,(G14/200)*'Biomass harvested submodel'!F12*(G16)*0.085,0) -> 0 | G45: =IF(G21=1,(G14/200)*'Biomass harvested submodel'!G12*(G16)*0.085,0) -> 0 | H45: =IF(G21=1,(G14/200)*'Biomass harvested submodel'!H12*(G16)*0.085,0) -> 0 | I45: =IF(G21=1,(G14/200)*'Biomass harvested submodel'!I12*(G16)*0.085,0) -> 0 | J45: =IF(G21=1,(G14/200)*'Biomass harvested submodel'!J12*(G16)*0.085,0) -> 0 | K45: =IF(G21=1,(G14/200)*'Biomass harvested submodel'!K12*(G16)*0.085,0) -> 0 | L45: =IF(G21=1,(G14/200)*'Biomass harvested submodel'!L12*(G16)*0.085,0) -> 0
B46: Tarp on bare ground | C46: =IF(G22=1,(G14/200)*'Biomass harvested submodel'!C12*(G16)*0.07,0) -> 0 | D46: =IF(G22=1,(G14/200)*'Biomass harvested submodel'!D12*(G16)*0.07,0) -> 0 | E46: =IF(G22=1,'Biomass harvested submodel'!E12*(G16)*0.07,0) -> 0 | F46: =IF(G22=1,(G14/200)*'Biomass harvested submodel'!F12*(G16)*0.07,0) -> 0 | G46: =IF(G22=1,(G14/200)*'Biomass harvested submodel'!G12*(G16)*0.07,0) -> 0 | H46: =IF(G22=1,(G14/200)*'Biomass harvested submodel'!H12*(G16)*0.07,0) -> 0 | I46: =IF(G22=1,(G14/200)*'Biomass harvested submodel'!I12*(G16)*0.07,0) -> 0 | J46: =IF(G22=1,(G14/200)*'Biomass harvested submodel'!J12*(G16)*0.07,0) -> 0 | K46: =IF(G22=1,(G14/200)*'Biomass harvested submodel'!K12*(G16)*0.07,0) -> 0 | L46: =IF(G22=1,(G14/200)*'Biomass harvested submodel'!L12*(G16)*0.07,0) -> 0
B47: Pallet no tarp | C47: =IF(G23=1,(G14/200)*'Biomass harvested submodel'!C12*(G16)*0.185,0) -> 0 | D47: =IF(G23=1,(G14/200)*'Biomass harvested submodel'!D12*(G16)*0.185,0) -> 0 | E47: =IF(G23=1,(G14/200)*'Biomass harvested submodel'!E12*(G16)*0.185,0) -> 0 | F47: =IF(G23=1,(G14/200)*'Biomass harvested submodel'!F12*(G16)*0.185,0) -> 0 | G47: =IF(G23=1,(G14/200)*'Biomass harvested submodel'!G12*(G16)*0.185,0) -> 0 | H47: =IF(G23=1,(G14/200)*'Biomass harvested submodel'!H12*(G16)*0.185,0) -> 0 | I47: =IF(G23=1,(G14/200)*'Biomass harvested submodel'!I12*(G16)*0.185,0) -> 0 | J47: =IF(G23=1,(G14/200)*'Biomass harvested submodel'!J12*(G16)*0.185,0) -> 0 | K47: =IF(G23=1,(G14/200)*'Biomass harvested submodel'!K12*(G16)*0.185,0) -> 0 | L47: =IF(G23=1,(G14/200)*'Biomass harvested submodel'!L12*(G16)*0.185,0) -> 0
B48: Gravel no tarp | C48: =IF(G24=1,(G14/200)*'Biomass harvested submodel'!C12*(G16)*0.166,0) -> 0 | D48: =IF(G24=1,(G14/200)*'Biomass harvested submodel'!D12*(G16)*0.166,0) -> 0 | E48: =IF(G24=1,(G14/200)*'Biomass harvested submodel'!E12*(G16)*0.166,0) -> 0 | F48: =IF(G24=1,(G14/200)*'Biomass harvested submodel'!F12*(G16)*0.166,0) -> 0 | G48: =IF(G24=1,(G14/200)*'Biomass harvested submodel'!G12*(G16)*0.166,0) -> 0 | H48: =IF(G24=1,(G14/200)*'Biomass harvested submodel'!H12*(G16)*0.166,0) -> 0 | I48: =IF(G24=1,(G14/200)*'Biomass harvested submodel'!I12*(G16)*0.166,0) -> 0 | J48: =IF(G24=1,(G14/200)*'Biomass harvested submodel'!J12*(G16)*0.166,0) -> 0 | K48: =IF(G24=1,(G14/200)*'Biomass harvested submodel'!K12*(G16)*0.166,0) -> 0 | L48: =IF(G24=1,(G14/200)*'Biomass harvested submodel'!L12*(G16)*0.166,0) -> 0
B49: Bare ground no tarp | C49: =IF(G25=1,(G14/200)*'Biomass harvested submodel'!C12*(G16)*0.128,0) -> 0 | D49: =IF(G25=1,(G14/200)*'Biomass harvested submodel'!D12*(G16)*0.128,0) -> 0 | E49: =IF(G25=1,(G14/200)*'Biomass harvested submodel'!E12*(G16)*0.128,0) -> 0 | F49: =IF(G25=1,(G14/200)*'Biomass harvested submodel'!F12*(G16)*0.128,0) -> 0 | G49: =IF(G25=1,(G14/200)*'Biomass harvested submodel'!G12*(G16)*0.128,0) -> 0 | H49: =IF(G25=1,(G14/200)*'Biomass harvested submodel'!H12*(G16)*0.128,0) -> 0 | I49: =IF(G25=1,(G14/200)*'Biomass harvested submodel'!I12*(G16)*0.128,0) -> 0 | J49: =IF(G25=1,(G14/200)*'Biomass harvested submodel'!J12*(G16)*0.128,0) -> 0 | K49: =IF(G25=1,(G14/200)*'Biomass harvested submodel'!K12*(G16)*0.128,0) -> 0 | L49: =IF(G25=1,(G14/200)*'Biomass harvested submodel'!L12*(G16)*0.128,0) -> 0
B50: Large rectangular bale
B51: Tarp and pallet | C51: =IF(G27=1,(G14/200)*'Biomass harvested submodel'!C12*(G16)*0.137,0) -> 0 | D51: =IF(G27=1,(G14/200)*'Biomass harvested submodel'!D12*(G16)*0.137,0) -> 0 | E51: =IF(G27=1,(G14/200)*'Biomass harvested submodel'!E12*(G16)*0.137,0) -> 0 | F51: =IF(G27=1,(G14/200)*'Biomass harvested submodel'!F12*(G16)*0.137,0) -> 0 | G51: =IF(G27=1,(G14/200)*'Biomass harvested submodel'!G12*(G16)*0.137,0) -> 0 | H51: =IF(G27=1,(G14/200)*'Biomass harvested submodel'!H12*(G16)*0.137,0) -> 0 | I51: =IF(G27=1,(G14/200)*'Biomass harvested submodel'!I12*(G16)*0.137,0) -> 0 | J51: =IF(G27=1,(G14/200)*'Biomass harvested submodel'!J12*(G16)*0.137,0) -> 0 | K51: =IF(G27=1,(G14/200)*'Biomass harvested submodel'!K12*(G16)*0.137,0) -> 0 | L51: =IF(G27=1,(G14/200)*'Biomass harvested submodel'!L12*(G16)*0.137,0) -> 0
B52: Tarp and gravel | C52: =IF(G28=1,(G14/200)*'Biomass harvested submodel'!C12*(G16)*0.28,0) -> 0 | D52: =IF(G28=1,(G14/200)*'Biomass harvested submodel'!D12*(G16)*0.28,0) -> 0 | E52: =IF(G28=1,(G14/200)*'Biomass harvested submodel'!E12*(G16)*0.28,0) -> 0 | F52: =IF(G28=1,(G14/200)*'Biomass harvested submodel'!F12*(G16)*0.28,0) -> 0 | G52: =IF(G28=1,(G14/200)*'Biomass harvested submodel'!G12*(G16)*0.28,0) -> 0 | H52: =IF(G28=1,(G14/200)*'Biomass harvested submodel'!H12*(G16)*0.28,0) -> 0 | I52: =IF(G28=1,(G14/200)*'Biomass harvested submodel'!I12*(G16)*0.28,0) -> 0 | J52: =IF(G28=1,(G14/200)*'Biomass harvested submodel'!J12*(G16)*0.28,0) -> 0 | K52: =IF(G28=1,(G14/200)*'Biomass harvested submodel'!K12*(G16)*0.28,0) -> 0 | L52: =IF(G28=1,(G14/200)*'Biomass harvested submodel'!L12*(G16)*0.28,0) -> 0
B53: Pallet no tarp | C53: =IF(G29=1,(G14/200)*'Biomass harvested submodel'!C12*(G16)*0.48,0) -> 0 | D53: =IF(G29=1,(G14/200)*'Biomass harvested submodel'!D12*(G16)*0.48,0) -> 0 | E53: =IF(G29=1,(G14/200)*'Biomass harvested submodel'!E12*(G16)*0.48,0) -> 0 | F53: =IF(G29=1,(G14/200)*'Biomass harvested submodel'!F12*(G16)*0.48,0) -> 0 | G53: =IF(G29=1,(G14/200)*'Biomass harvested submodel'!G12*(G16)*0.48,0) -> 0 | H53: =IF(G29=1,(G14/200)*'Biomass harvested submodel'!H12*(G16)*0.48,0) -> 0 | I53: =IF(G29=1,(G14/200)*'Biomass harvested submodel'!I12*(G16)*0.48,0) -> 0 | J53: =IF(G29=1,(G14/200)*'Biomass harvested submodel'!J12*(G16)*0.48,0) -> 0 | K53: =IF(G29=1,(G14/200)*'Biomass harvested submodel'!K12*(G16)*0.48,0) -> 0 | L53: =IF(G29=1,(G14/200)*'Biomass harvested submodel'!L12*(G16)*0.48,0) -> 0
B54: Gravel no tarp | C54: =IF(G30=1,(G14/200)*'Biomass harvested submodel'!C12*(G16)*0.571,0) -> 0 | D54: =IF(G30=1,(G14/200)*'Biomass harvested submodel'!D12*(G16)*0.571,0) -> 0 | E54: =IF(G30=1,(G14/200)*'Biomass harvested submodel'!E12*(G16)*0.571,0) -> 0 | F54: =IF(G30=1,(G14/200)*'Biomass harvested submodel'!F12*(G16)*0.571,0) -> 0 | G54: =IF(G30=1,(G14/200)*'Biomass harvested submodel'!G12*(0.01*G16)*0.571,0) -> 0 | H54: =IF(G30=1,(G14/200)*'Biomass harvested submodel'!H12*(G16)*0.571,0) -> 0 | I54: =IF(G30=1,(G14/200)*'Biomass harvested submodel'!I12*(G16)*0.571,0) -> 0 | J54: =IF(G30=1,(G14/200)*'Biomass harvested submodel'!J12*(G16)*0.571,0) -> 0 | K54: =IF(G30=1,(G14/200)*'Biomass harvested submodel'!K12*(G16)*0.571,0) -> 0 | L54: =IF(G30=1,(G14/200)*'Biomass harvested submodel'!L12*(0.01*G16)*0.571,0) -> 0
B56: Storage costs per year
B57: Year | C57: 1 | D57: 2 | E57: 3 | F57: 4 | G57: 5 | H57: 6 | I57: 7 | J57: 8 | K57: 9 | L57: 10
B58: Storage method
B59: Large round bale
B60: Tarp and Pallet | C60: =IF($G$20=1,((279.09/72)*(('Biomass harvested submodel'!D12)/0.4)+((17.25/6)*(('Biomass harvested submodel'!D12)/0.4))),0) -> 3122.453125 | D60: =IF($G$20=1,((279.09/72)*(('Biomass harvested submodel'!D12-0.8*'Biomass harvested submodel'!C12)/0.4)+((17.25/6)*(('Biomass harvested submodel'!D12-0.75*'Biomass harvested submodel'!C12)/0.4))),0) -> 2202.434375 | E60: =IF($G$20=1,((279.09/72)*(('Biomass harvested submodel'!E12-0.8*'Biomass harvested submodel'!D12)/0.4)+((17.25/6)*(('Biomass harvested submodel'!E12-0.75*'Biomass harvested submodel'!D12)/0.4))),0) -> 2631.959375 | F60: =IF($G$20=1,((279.09/72)*(('Biomass harvested submodel'!F12-0.8*'Biomass harvested submodel'!E12)/0.4)+((17.25/6)*(('Biomass harvested submodel'!F12-0.75*'Biomass harvested submodel'!E12)/0.4))),0) -> 1120.5 | G60: =IF($G$20=1,((279.09/72)*(('Biomass harvested submodel'!G12-0.8*'Biomass harvested submodel'!F12)/0.4)+((17.25/6)*(('Biomass harvested submodel'!G12-0.75*'Biomass harvested submodel'!F12)/0.4))),0) -> 1120.5 | H60: =IF($G$20=1,((279.09/72)*(('Biomass harvested submodel'!H12-0.8*'Biomass harvested submodel'!G12)/0.4)+((17.25/6)*(('Biomass harvested submodel'!H12-0.75*'Biomass harvested submodel'!G12)/0.4))),0) -> 1120.5 | I60: =IF($G$20=1,((279.09/72)*(('Biomass harvested submodel'!I12-0.8*'Biomass harvested submodel'!H12)/0.4)+((17.25/6)*(('Biomass harvested submodel'!I12-0.75*'Biomass harvested submodel'!H12)/0.4))),0) -> 1120.5 | J60: =IF($G$20=1,((279.09/72)*(('Biomass harvested submodel'!J12-0.8*'Biomass harvested submodel'!I12)/0.4)+((17.25/6)*(('Biomass harvested submodel'!J12-0.75*'Biomass harvested submodel'!I12)/0.4))),0) -> 1120.5 | K60: =IF($G$20=1,((279.09/72)*(('Biomass harvested submodel'!K12-0.8*'Biomass harvested submodel'!J12)/0.4)+((17.25/6)*(('Biomass harvested submodel'!K12-0.75*'Biomass harvested submodel'!J12)/0.4))),0) -> 1120.5 | L60: =IF($G$20=1,((279.09/72)*(('Biomass harvested submodel'!L12-0.8*'Biomass harvested submodel'!K12)/0.4)+((17.25/6)*(('Biomass harvested submodel'!L12-0.75*'Biomass harvested submodel'!K12)/0.4))),0) -> 1120.5
B61: Tarp and gravel | C61: =IF($G$21=1,((279.09/72)*('Biomass harvested submodel'!C12/0.4)+((24.31/3)*('Biomass harvested submodel'!C12/0.4))),0) -> 0 | D61: =IF($G$21=1,((279.09/72)*(('Biomass harvested submodel'!D12-0.8*'Biomass harvested submodel'!C8)/0.4)+((24.31/3)*(('Biomass harvested submodel'!D12-'Biomass harvested submodel'!C12)/0.4))),0) -> 0 | E61: =IF($G$21=1,((279.09/72)*(('Biomass harvested submodel'!E12-0.8*'Biomass harvested submodel'!D8)/0.4)+((24.31/3)*(('Biomass harvested submodel'!E12-'Biomass harvested submodel'!D12)/0.4))),0) -> 0 | F61: =IF($G$21=1,((279.09/72)*(('Biomass harvested submodel'!F12-0.8*'Biomass harvested submodel'!E8)/0.4)+((24.31/3)*(('Biomass harvested submodel'!F12-'Biomass harvested submodel'!E12)/0.4))),0) -> 0 | G61: =IF($G$21=1,((279.09/72)*(('Biomass harvested submodel'!G12-0.8*'Biomass harvested submodel'!F8)/0.4)+((24.31/3)*(('Biomass harvested submodel'!G12-'Biomass harvested submodel'!F12)/0.4))),0) -> 0 | H61: =IF($G$21=1,((279.09/72)*(('Biomass harvested submodel'!H12-0.8*'Biomass harvested submodel'!G8)/0.4)+((24.31/3)*(('Biomass harvested submodel'!H12-'Biomass harvested submodel'!G12)/0.4))),0) -> 0 | I61: =IF($G$21=1,((279.09/72)*(('Biomass harvested submodel'!I12-0.8*'Biomass harvested submodel'!H8)/0.4)+((24.31/3)*(('Biomass harvested submodel'!I12-'Biomass harvested submodel'!H12)/0.4))),0) -> 0 | J61: =IF($G$21=1,((279.09/72)*(('Biomass harvested submodel'!J12-0.8*'Biomass harvested submodel'!I8)/0.4)+((24.31/3)*(('Biomass harvested submodel'!J12-'Biomass harvested submodel'!I12)/0.4))),0) -> 0 | K61: =IF($G$21=1,((279.09/72)*(('Biomass harvested submodel'!K12-0.8*'Biomass harvested submodel'!J8)/0.4)+((24.31/3)*(('Biomass harvested submodel'!K12-'Biomass harvested submodel'!J12)/0.4))),0) -> 0 | L61: =IF($G$21=1,((279.09/72)*(('Biomass harvested submodel'!L12-0.8*'Biomass harvested submodel'!K8)/0.4)+((24.31/3)*(('Biomass harvested submodel'!L12-'Biomass harvested submodel'!K12)/0.4))),0) -> 0
B62: Tarp on bare ground | C62: =IF($G$22=1,((279.09/72)*('Biomass harvested submodel'!C12/0.4)),0) -> 0 | D62: =IF($G$22=1,((279.09/72)*(('Biomass harvested submodel'!D12-0.8*'Biomass harvested submodel'!C12)/0.4)),0) -> 0 | E62: =IF($G$22=1,((279.09/72)*(('Biomass harvested submodel'!E12-0.8*'Biomass harvested submodel'!D12)/0.4)),0) -> 0 | F62: =IF($G$22=1,((279.09/72)*(('Biomass harvested submodel'!F12-0.8*'Biomass harvested submodel'!E12)/0.4)),0) -> 0 | G62: =IF($G$22=1,((279.09/72)*(('Biomass harvested submodel'!G12-0.8*'Biomass harvested submodel'!F12)/0.4)),0) -> 0 | H62: =IF($G$22=1,((279.09/72)*(('Biomass harvested submodel'!H12-0.8*'Biomass harvested submodel'!G12)/0.4)),0) -> 0 | I62: =IF($G$22=1,((279.09/72)*(('Biomass harvested submodel'!I12-0.8*'Biomass harvested submodel'!H12)/0.4)),0) -> 0 | J62: =IF($G$22=1,((279.09/72)*(('Biomass harvested submodel'!J12-0.8*'Biomass harvested submodel'!I12)/0.4)),0) -> 0 | K62: =IF($G$22=1,((279.09/72)*(('Biomass harvested submodel'!K12-0.8*'Biomass harvested submodel'!J12)/0.4)),0) -> 0 | L62: =IF($G$22=1,((279.09/72)*(('Biomass harvested submodel'!L12-0.8*'Biomass harvested submodel'!K12)/0.4)),0) -> 0
B63: Pallet no tarp | C63: =IF($G$23=1,((17.25/6)*('Biomass harvested submodel'!C12/0.4)),0) -> 0 | D63: =IF($G$23=1,((17.25/6)*(('Biomass harvested submodel'!D12-0.667*'Biomass harvested submodel'!C12)/0.4)),0) -> 0 | E63: =IF($G$23=1,((17.25/6)*(('Biomass harvested submodel'!E12-0.667*'Biomass harvested submodel'!D12)/0.4)),0) -> 0 | F63: =IF($G$23=1,((17.25/6)*(('Biomass harvested submodel'!F12-0.667*'Biomass harvested submodel'!E12)/0.4)),0) -> 0 | G63: =IF($G$23=1,((17.25/6)*(('Biomass harvested submodel'!G12-0.667*'Biomass harvested submodel'!F12)/0.4)),0) -> 0 | H63: =IF($G$23=1,((17.25/6)*(('Biomass harvested submodel'!H12-0.667*'Biomass harvested submodel'!G12)/0.4)),0) -> 0 | I63: =IF($G$23=1,((17.25/6)*(('Biomass harvested submodel'!I12-0.667*'Biomass harvested submodel'!H12)/0.4)),0) -> 0 | J63: =IF($G$23=1,((17.25/6)*(('Biomass harvested submodel'!J12-0.667*'Biomass harvested submodel'!I12)/0.4)),0) -> 0 | K63: =IF($G$23=1,((17.25/6)*(('Biomass harvested submodel'!K12-0.667*'Biomass harvested submodel'!J12)/0.4)),0) -> 0 | L63: =IF($G$23=1,((17.25/6)*(('Biomass harvested submodel'!L12-0.667*'Biomass harvested submodel'!K12)/0.4)),0) -> 0
B64: Gravel no tarp | C64: =IF($G$24=1,((24.31/3)*('Biomass harvested submodel'!C12/0.4)),0) -> 0 | D64: =IF($G$24=1,((24.31/3)*(('Biomass harvested submodel'!D12-0.98*'Biomass harvested submodel'!C12)/0.4)),0) -> 0 | E64: =IF($G$24=1,((24.31/3)*(('Biomass harvested submodel'!E12-0.98*'Biomass harvested submodel'!D12)/0.4)),0) -> 0 | F64: =IF($G$24=1,((24.31/3)*(('Biomass harvested submodel'!F12-0.98*'Biomass harvested submodel'!E12)/0.4)),0) -> 0 | G64: =IF($G$24=1,((24.31/3)*(('Biomass harvested submodel'!G12-0.98*'Biomass harvested submodel'!F12)/0.4)),0) -> 0 | H64: =IF($G$24=1,((24.31/3)*(('Biomass harvested submodel'!H12-0.98*'Biomass harvested submodel'!G12)/0.4)),0) -> 0 | I64: =IF($G$24=1,((24.31/3)*(('Biomass harvested submodel'!I12-0.98*'Biomass harvested submodel'!H12)/0.4)),0) -> 0 | J64: =IF($G$24=1,((24.31/3)*(('Biomass harvested submodel'!J12-0.98*'Biomass harvested submodel'!I12)/0.4)),0) -> 0 | K64: =IF($G$24=1,((24.31/3)*(('Biomass harvested submodel'!K12-0.98*'Biomass harvested submodel'!J12)/0.4)),0) -> 0 | L64: =IF($G$24=1,((24.31/3)*(('Biomass harvested submodel'!L12-0.98*'Biomass harvested submodel'!K12)/0.4)),0) -> 0
B65: Bare ground no tarp | C65: =IF($G$25=1,0,0) -> 0 | D65: =IF($G$25=1,0,0) -> 0 | E65: 0 | F65: 0 | G65: 0 | H65: 0 | I65: 0 | J65: 0 | K65: 0 | L65: 0
B66: Large rectangular bale
B67: Tarp and pallet | C67: =IF($G$27=1,((279.09/60)*(('Biomass harvested submodel'!C12))+((23/5)*(('Biomass harvested submodel'!C12)))),0) -> 0 | D67: =IF($G$27=1,((279.09/60)*(('Biomass harvested submodel'!D12-0.8*'Biomass harvested submodel'!C12))+((23/5)*(('Biomass harvested submodel'!D12-0.75*'Biomass harvested submodel'!C12)))),0) -> 0 | E67: =IF($G$27=1,((279.09/60)*(('Biomass harvested submodel'!E12-0.8*'Biomass harvested submodel'!D12))+((23/5)*(('Biomass harvested submodel'!E12-0.75*'Biomass harvested submodel'!D12)))),0) -> 0 | F67: =IF($G$27=1,((279.09/60)*(('Biomass harvested submodel'!F12-0.8*'Biomass harvested submodel'!E12))+((23/5)*(('Biomass harvested submodel'!F12-0.75*'Biomass harvested submodel'!E12)))),0) -> 0 | G67: =IF($G$27=1,((279.09/60)*(('Biomass harvested submodel'!G12-0.8*'Biomass harvested submodel'!F12))+((23/5)*(('Biomass harvested submodel'!G12-0.75*'Biomass harvested submodel'!F12)))),0) -> 0 | H67: =IF($G$27=1,((279.09/60)*(('Biomass harvested submodel'!H12-0.8*'Biomass harvested submodel'!G12))+((23/5)*(('Biomass harvested submodel'!H12-0.75*'Biomass harvested submodel'!G12)))),0) -> 0 | I67: =IF($G$27=1,((279.09/60)*(('Biomass harvested submodel'!I12-0.8*'Biomass harvested submodel'!H12))+((23/5)*(('Biomass harvested submodel'!I12-0.75*'Biomass harvested submodel'!H12)))),0) -> 0 | J67: =IF($G$27=1,((279.09/60)*(('Biomass harvested submodel'!J12-0.8*'Biomass harvested submodel'!I12))+((23/5)*(('Biomass harvested submodel'!J12-0.75*'Biomass harvested submodel'!I12)))),0) -> 0 | K67: =IF($G$27=1,((279.09/60)*(('Biomass harvested submodel'!K12-0.8*'Biomass harvested submodel'!J12))+((23/5)*(('Biomass harvested submodel'!K12-0.75*'Biomass harvested submodel'!J12)))),0) -> 0 | L67: =IF($G$27=1,((279.09/60)*(('Biomass harvested submodel'!L12-0.8*'Biomass harvested submodel'!K12))+((23/5)*(('Biomass harvested submodel'!L12-0.75*'Biomass harvested submodel'!K12)))),0) -> 0
B68: Tarp and gravel | C68: =IF($G$28=1,((279.09/60)*(('Biomass harvested submodel'!C12))+((24.31/2.5)*(('Biomass harvested submodel'!C12)))),0) -> 0 | D68: =IF($G$28=1,((279.09/60)*(('Biomass harvested submodel'!D12-0.8*'Biomass harvested submodel'!C12))+((24.31/2.5)*(('Biomass harvested submodel'!D12-0.98*'Biomass harvested submodel'!C12)))),0) -> 0 | E68: =IF($G$28=1,((279.09/60)*(('Biomass harvested submodel'!E12-0.8*'Biomass harvested submodel'!D12))+((24.31/2.5)*(('Biomass harvested submodel'!E12-0.98*'Biomass harvested submodel'!D12)))),0) -> 0 | F68: =IF($G$28=1,((279.09/60)*(('Biomass harvested submodel'!F12-0.8*'Biomass harvested submodel'!E12))+((24.31/2.5)*(('Biomass harvested submodel'!F12-0.98*'Biomass harvested submodel'!E12)))),0) -> 0 | G68: =IF($G$28=1,((279.09/60)*(('Biomass harvested submodel'!G12-0.8*'Biomass harvested submodel'!F12))+((24.31/2.5)*(('Biomass harvested submodel'!G12-0.98*'Biomass harvested submodel'!F12)))),0) -> 0 | H68: =IF($G$28=1,((279.09/60)*(('Biomass harvested submodel'!H12-0.8*'Biomass harvested submodel'!G12))+((24.31/2.5)*(('Biomass harvested submodel'!H12-0.98*'Biomass harvested submodel'!G12)))),0) -> 0 | I68: =IF($G$28=1,((279.09/60)*(('Biomass harvested submodel'!I12-0.8*'Biomass harvested submodel'!H12))+((24.31/2.5)*(('Biomass harvested submodel'!I12-0.98*'Biomass harvested submodel'!H12)))),0) -> 0 | J68: =IF($G$28=1,((279.09/60)*(('Biomass harvested submodel'!J12-0.8*'Biomass harvested submodel'!I12))+((24.31/2.5)*(('Biomass harvested submodel'!J12-0.98*'Biomass harvested submodel'!I12)))),0) -> 0 | K68: =IF($G$28=1,((279.09/60)*(('Biomass harvested submodel'!K12-0.8*'Biomass harvested submodel'!J12))+((24.31/2.5)*(('Biomass harvested submodel'!K12-0.98*'Biomass harvested submodel'!J12)))),0) -> 0 | L68: =IF($G$28=1,((279.09/60)*(('Biomass harvested submodel'!L12-0.8*'Biomass harvested submodel'!K12))+((24.31/2.5)*(('Biomass harvested submodel'!L12-0.98*'Biomass harvested submodel'!K12)))),0) -> 0
B69: Pallet no tarp | C69: =IF($G$29=1,((23/5)*(('Biomass harvested submodel'!C12))),0) -> 0 | D69: =IF($G$29=1,((23/5)*(('Biomass harvested submodel'!D12-0.75*'Biomass harvested submodel'!C12))),0) -> 0 | E69: =IF($G$29=1,((23/5)*(('Biomass harvested submodel'!E12-0.75*'Biomass harvested submodel'!D12))),0) -> 0 | F69: =IF($G$29=1,((23/5)*(('Biomass harvested submodel'!F12-0.75*'Biomass harvested submodel'!E12))),0) -> 0 | G69: =IF($G$29=1,((23/5)*(('Biomass harvested submodel'!G12-0.75*'Biomass harvested submodel'!F12))),0) -> 0 | H69: =IF($G$29=1,((23/5)*(('Biomass harvested submodel'!H12-0.75*'Biomass harvested submodel'!G12))),0) -> 0 | I69: =IF($G$29=1,((23/5)*(('Biomass harvested submodel'!I12-0.75*'Biomass harvested submodel'!H12))),0) -> 0 | J69: =IF($G$29=1,((23/5)*(('Biomass harvested submodel'!J12-0.75*'Biomass harvested submodel'!I12))),0) -> 0 | K69: =IF($G$29=1,((23/5)*(('Biomass harvested submodel'!K12-0.75*'Biomass harvested submodel'!J12))),0) -> 0 | L69: =IF($G$29=1,((23/5)*(('Biomass harvested submodel'!L12-0.75*'Biomass harvested submodel'!K12))),0) -> 0
B70: Gravel no tarp | C70: =IF($G$30=1,((24.31/2.5)*('Biomass harvested submodel'!C12/0.4)),0) -> 0 | D70: =IF($G$30=1,((24.31/2.5)*(('Biomass harvested submodel'!D12-0.98*'Biomass harvested submodel'!C12)/0.4)),0) -> 0 | E70: =IF($G$30=1,((24.31/2.5)*(('Biomass harvested submodel'!E12-0.98*'Biomass harvested submodel'!D12)/0.4)),0) -> 0 | F70: =IF($G$30=1,((24.31/2.5)*(('Biomass harvested submodel'!F12-0.98*'Biomass harvested submodel'!E12)/0.4)),0) -> 0 | G70: =IF($G$30=1,((24.31/2.5)*(('Biomass harvested submodel'!G12-0.98*'Biomass harvested submodel'!F12)/0.4)),0) -> 0 | H70: =IF($G$30=1,((24.31/2.5)*(('Biomass harvested submodel'!H12-0.98*'Biomass harvested submodel'!G12)/0.4)),0) -> 0 | I70: =IF($G$30=1,((24.31/2.5)*(('Biomass harvested submodel'!I12-0.98*'Biomass harvested submodel'!H12)/0.4)),0) -> 0 | J70: =IF($G$30=1,((24.31/2.5)*(('Biomass harvested submodel'!J12-0.98*'Biomass harvested submodel'!I12)/0.4)),0) -> 0 | K70: =IF($G$30=1,((24.31/2.5)*(('Biomass harvested submodel'!K12-0.98*'Biomass harvested submodel'!J12)/0.4)),0) -> 0 | L70: =IF($G$30=1,((24.31/2.5)*(('Biomass harvested submodel'!L12-0.98*'Biomass harvested submodel'!K12)/0.4)),0) -> 0
B74: Dry matter loss schedule by year in tons
B75: Year | C75: 1 | D75: 2 | E75: 3 | F75: 4 | G75: 5 | H75: 6 | I75: 7 | J75: 8 | K75: 9 | L75: 10
B76: Loss | C76: =SUM(C44:C54) -> 0.7 | D76: =SUM(D44:D54) -> 1.85 | E76: 3 | F76: 3 | G76: 3 | H76: 3 | I76: 3 | J76: 3 | K76: 3 | L76: 3
B78: Total biobass making it to the plant
B79: Year | C79: 1 | D79: 2 | E79: 3 | F79: 4 | G79: 5 | H79: 6 | I79: 7 | J79: 8 | K79: 9 | L79: 10
B80: Biomass | C80: =('Biomass harvested submodel'!C12-C76) -> 69.3 | D80: ='Biomass harvested submodel'!D12-D76 -> 183.15 | E80: ='Biomass harvested submodel'!E12-E76 -> 297 | F80: ='Biomass harvested submodel'!F12-F76 -> 297 | G80: ='Biomass harvested submodel'!G12-G76 -> 297 | H80: ='Biomass harvested submodel'!H12-H76 -> 297 | I80: ='Biomass harvested submodel'!I12-I76 -> 297 | J80: ='Biomass harvested submodel'!J12-J76 -> 297 | K80: ='Biomass harvested submodel'!K12-K76 -> 297 | L80: ='Biomass harvested submodel'!L12-L76 -> 297
B82: Cost of storage by ton per year
B83: Year | C83: 1 | D83: 2 | E83: 3 | F83: 4 | G83: 5 | H83: 6 | I83: 7 | J83: 8 | K83: 9 | L83: 10
B84: Total cost | C84: =SUM(C60:C70) -> 3122.453125 | D84: =SUM(D60:D70) -> 2202.434375 | E84: 2631.959375 | F84: 1120.5 | G84: 1120.5 | H84: 1120.5 | I84: 1120.5 | J84: 1120.5 | K84: 1120.5 | L84: 1120.5
B85: Cost per ton | C85: =C84/'Biomass harvested submodel'!C12 -> 44.60647321 | D85: =D84/'Biomass harvested submodel'!D12 -> 11.90505068 | E85: =E84/'Biomass harvested submodel'!E12 -> 8.773197917 | F85: =F84/'Biomass harvested submodel'!F12 -> 3.735 | G85: =G84/'Biomass harvested submodel'!G12 -> 3.735 | H85: =H84/'Biomass harvested submodel'!H12 -> 3.735 | I85: =I84/'Biomass harvested submodel'!I12 -> 3.735 | J85: =J84/'Biomass harvested submodel'!J12 -> 3.735 | K85: =K84/'Biomass harvested submodel'!K12 -> 3.735 | L85: =L84/'Biomass harvested submodel'!L12 -> 3.735

Sheet Biomass harvested submodel
B1: =Welcome!$A$5 -> Project Name Here
B2: Biomass harvested Submodel
B4: Acres planted | C4: ='Input-output'!D8 -> 50 | E4: Mature stand yield in tons/acre | G4: 6
B6: Estimated harvest in tons per acre
B7: Year | C7: 1 | D7: 2 | E7: 3 | F7: 4 | G7: 5 | H7: 6 | I7: 7 | J7: 8 | K7: 9 | L7: 10
B8: Tons/acre | C8: 1.4 | D8: 3.7 | E8: =$G$4 -> 6 | F8: =$G$4 -> 6 | G8: 6 | H8: 6 | I8: 6 | J8: 6 | K8: 6 | L8: 6
B10: Estimated harvest in tons per year
B11: Year | C11: 1 | D11: 2 | E11: 3 | F11: 4 | G11: 5 | H11: 6 | I11: 7 | J11: 8 | K11: 9 | L11: 10
B12: Tons/acre | C12: =C4*C8 -> 70 | D12: =C4*D8 -> 185 | E12: =C4*E8 -> 300 | F12: =C4*F8 -> 300 | G12: =C4*G8 -> 300 | H12: =C4*H8 -> 300 | I12: =C4*I8 -> 300 | J12: =C4*J8 -> 300 | K12: =C4*K8 -> 300 | L12: =C4*L8 -> 300
